bitfinex/quotes_BTCUSD_20250417
["timestamp","ask_amount","ask_price","bid_price","bid_amount"]
[1744851001012,0.0008426,84086.0,84084.0,0.23785711]
[1744851003089,0.0008426,84086.0,84084.0,0.23885711]
[1744851005887,0.00488008,84085.0,84084.0,0.23885711]
[1744851006108,0.0008426,84086.0,84084.0,0.23885711]
[1744851006413,0.00488008,84085.0,84084.0,0.23885711]
[1744851006733,0.0008426,84086.0,84084.0,0.23785711]
[1744851007049,0.00488008,84085.0,84084.0,0.23785711]
[1744851007245,0.0008426,84086.0,84084.0,0.23885711]
[1744851007476,0.00488008,84085.0,84084.0,0.23885711]
[1744851008303,0.24273463,84085.0,84084.0,0.001]
[1744851009647,0.33643463,84085.0,84084.0,0.001]
[1744851010623,0.34820522,84085.0,84084.0,0.001]
[1744851011143,0.33643463,84085.0,84084.0,0.001]
[1744851012073,0.00488008,84085.0,84084.0,0.001]
[1744851013058,0.24273463,84085.0,84084.0,0.001]
[1744851018731,0.23788284,84075.0,84074.0,0.4188]
[1744851019061,0.24278528,84075.0,84074.0,0.4188]
[1744851019268,0.23790831,84066.0,84065.0,0.13852]
[1744851019464,0.24281269,84066.0,84065.0,0.13852]
[1744851021442,0.24281269,84066.0,84065.0,0.14052]
[1744851021650,0.00490438,84066.0,84065.0,0.14152]
[1744851021854,0.01189428,84074.0,84065.0,0.14152]
[1744851021855,0.00620703,84089.0,84070.0,0.01189484]
[1744851022083,0.00491712,84075.0,84074.0,0.23788567]
[1744851022285,0.01189371,84078.0,84074.0,0.23788567]
[1744851022466,0.01672785,84077.0,84073.0,0.23788734]
[1744851022893,0.01672785,84077.0,84071.0,0.2378939]
[1744851023113,0.012894,84076.0,84071.0,0.2497886]
[1744851023363,0.00484869,84075.0,84073.0,0.23788775]
[1744851023619,0.00484869,84075.0,84072.0,0.23789133]
[1744851023793,0.011894,84076.0,84072.0,0.23789133]
[1744851024013,0.00484379,84074.0,84072.0,0.23789133]
[1744851024237,0.01189414,84075.0,84072.0,0.23789133]
[1744851024425,0.00484379,84073.0,84072.0,0.23789133]
[1744851024656,0.01189414,84075.0,84072.0,0.23789133]
[1744851024873,0.00484869,84073.0,84072.0,0.23789133]
[1744851025046,0.01189513,84068.0,84061.0,0.01189612]
[1744851025209,0.01189513,84068.0,84065.0,0.25796791]
[1744851025412,0.01189513,84068.0,84066.0,0.13852]
[1744851025770,0.24274633,84067.0,84066.0,0.13852]
[1744851025945,0.00484085,84067.0,84066.0,0.13852]
[1744851026346,0.24979703,84069.0,84066.0,0.13852]
[1744851026550,0.00484085,84067.0,84066.0,0.13852]
[1744851026750,0.01189499,84069.0,84066.0,0.13852]
[1744851026950,0.01189414,84075.0,84069.0,0.01189499]
[1744851027176,0.01189414,84075.0,84066.0,0.13852]
[1744851027177,0.0118947,84071.0,84067.0,0.01189527]
[1744851027333,0.0118947,84071.0,84068.0,0.23790007]
[1744851028235,0.0118947,84071.0,84069.0,0.002]
[1744851028417,0.0118947,84071.0,84068.0,0.23790007]
[1744851029013,0.24978036,84074.0,84070.0,0.24979181]
[1744851029218,0.001,84071.0,84070.0,0.23789699]
[1744851029482,0.001,84071.0,84068.0,0.24090007]
[1744851030168,0.001,84071.0,84070.0,0.23789699]
[1744851030369,0.001,84071.0,84070.0,0.35972361]
[1744851030573,0.01189286,84084.0,84079.0,0.01189357]
[1744851030747,0.01189286,84084.0,84079.0,0.13134148]
[1744851030939,0.01189301,84083.0,84079.0,0.11944791]
[1744851031631,0.2497535,84083.0,84079.0,0.11944791]
[1744851031831,0.01189315,84082.0,84079.0,0.11944791]
[1744851032075,0.01189315,84082.0,84079.0,0.12044791]
[1744851032592,0.23786586,84081.0,84079.0,0.12044791]
[1744851033408,0.23786586,84081.0,84079.0,0.001]
[1744851033609,0.0495,84080.0,84079.0,0.001]
[1744851034203,0.01189442,84073.0,84070.0,0.22401495]
[1744851034401,0.01189442,84073.0,84070.0,0.11944791]
[1744851034787,0.01189385,84077.0,84071.0,0.0118947]
[1744851034986,0.01189442,84073.0,84070.0,0.11944791]
[1744851035657,0.01189442,84073.0,84071.0,0.13852]
[1744851036007,0.01239551,84072.0,84071.0,0.13952]
[1744851036434,0.01239551,84072.0,84071.0,0.13852]
[1744851036835,0.01239551,84072.0,84071.0,0.13952]
[1744851037582,0.01239551,84072.0,84071.0,0.14052]
[1744851037903,0.24978268,84074.0,84071.0,0.14052]
[1744851038126,0.01238777,84073.0,84071.0,0.14052]
[1744851038327,0.01238777,84073.0,84071.0,0.13952]
[1744851038506,0.01189357,84079.0,84076.0,0.011894]
[1744851038665,0.0123677,84078.0,84076.0,0.011894]
[1744851039708,0.02426141,84078.0,84073.0,0.01189442]
[1744851039924,0.02426141,84078.0,84074.0,0.11944791]
[1744851040802,0.02426141,84078.0,84076.0,0.001]
[1744851041009,0.26213828,84078.0,84076.0,0.001]
[1744851041207,0.26213828,84078.0,84075.0,0.13852]
[1744851041413,0.26213828,84078.0,84075.0,0.25796791]
[1744851042613,0.26213828,84078.0,84076.0,0.001]
[1744851043963,0.26213828,84078.0,84075.0,0.25796791]
[1744851044183,0.26213828,84078.0,84075.0,0.25896791]
[1744851044306,0.26213828,84078.0,84075.0,0.25796791]
[1744851044747,0.26213828,84078.0,84076.0,0.001]
[1744851044959,0.26213828,84078.0,84075.0,0.25796791]
[1744851045309,0.23787965,84077.0,84075.0,0.25896791]
[1744851045681,0.01237891,84076.0,84075.0,0.25796791]
[1744851046274,0.06047891,84076.0,84075.0,0.13852]
[1744851046482,0.10877891,84076.0,84075.0,0.13852]
[1744851048060,0.10977891,84076.0,84075.0,0.13852]
[1744851048695,0.11077891,84076.0,84075.0,0.13852]
[1744851051315,0.11077891,84076.0,84059.0,1.11296]
[1744851051316,0.01189555,84065.0,84059.0,1.11296]
[1744851051538,0.24980966,84064.0,84063.0,0.13852]
[1744851051770,0.26215678,84064.0,84063.0,0.13852]
[1744851052462,0.02424281,84064.0,84063.0,0.13852]
[1744851053177,0.07184281,84064.0,84063.0,0.13852]
[1744851053626,0.07184281,84064.0,84063.0,0.14052]
[1744851054327,0.07284281,84064.0,84063.0,0.14352]
[1744851054807,0.07522142,84064.0,84063.0,0.14352]
[1744851055255,0.07422142,84064.0,84063.0,0.14052]
[1744851055503,0.07522142,84064.0,84063.0,0.14052]
[1744851055928,0.07522142,84064.0,84063.0,0.14152]
[1744851057770,0.01334712,84064.0,84063.0,0.3794368]
[1744851058284,0.001,84064.0,84063.0,0.3794368]
[1744851058570,0.001,84064.0,84063.0,0.49888471]
[1744851061444,0.001,84064.0,84063.0,0.14152]
[1744851061687,0.001,84064.0,84063.0,0.3794368]
[1744851066024,0.001,84064.0,84063.0,0.59428471]
[1744851066467,0.001,84064.0,84063.0,0.49888471]
[1744851069556,0.001,84064.0,84063.0,0.91768471]
[1744851076894,0.001,84064.0,84063.0,0.91668471]
[1744851077312,0.0008426,84086.0,84085.0,0.23785455]
[1744851077675,0.0132143,84086.0,84085.0,0.23785455]
[1744851078262,0.0008426,84086.0,84085.0,0.23785455]
[1744851078672,0.0018426,84086.0,84085.0,0.23785455]
[1744851079067,0.0018426,84086.0,84085.0,0.35730246]
[1744851080755,0.0028426,84086.0,84085.0,0.36918006]
[1744851082251,0.0018426,84086.0,84085.0,0.36918006]
[1744851082927,0.0008426,84086.0,84085.0,0.78798006]
[1744851083123,0.0008426,84086.0,84085.0,0.83438006]
[1744851083348,0.0008426,84086.0,84085.0,0.88548006]
[1744851083349,0.0018426,84086.0,84085.0,0.88548006]
[1744851083578,0.0008426,84086.0,84085.0,0.88548006]
[1744851083730,0.0018426,84086.0,84085.0,0.88848006]
[1744851083931,0.0018426,84086.0,84085.0,0.88648006]
[1744851084134,0.0008426,84086.0,84085.0,0.88348006]
[1744851084334,0.0018426,84086.0,84085.0,0.89048006]
[1744851088543,1e-08,84090.0,84089.0,2.29217199]
[1744851089435,0.00100001,84090.0,84089.0,2.29917199]
[1744851089679,0.00100001,84090.0,84089.0,2.30417199]
[1744851090119,0.00100001,84090.0,84089.0,2.29917199]
[1744851090370,0.00100001,84090.0,84089.0,2.30317199]
[1744851090983,1e-08,84095.0,84094.0,0.29766994]
[1744851091188,1e-08,84095.0,84094.0,1.22601785]
[1744851092701,1e-08,84095.0,84094.0,1.22901785]
[1744851093233,1e-08,84095.0,84094.0,1.23101785]
[1744851093617,1e-08,84095.0,84094.0,1.23401785]
[1744851094247,0.0008428,84104.0,84102.0,0.01454085]
[1744851094425,0.0008428,84106.0,84105.0,0.01554085]
[1744851094628,0.00090227,84106.0,84105.0,0.13736588]
[1744851095054,1e-08,84107.0,84106.0,0.40024085]
[1744851095258,1e-08,84107.0,84106.0,0.75848392]
[1744851095706,1e-08,84110.0,84109.0,0.35454085]
[1744851095823,1e-08,84110.0,84109.0,0.47398876]
[1744851097050,1e-08,84110.0,84109.0,0.47798876]
[1744851097250,1e-08,84110.0,84109.0,0.47398876]
[1744851097492,1e-08,84110.0,84109.0,0.47698876]
[1744851097691,1e-08,84110.0,84109.0,0.48198876]
[1744851098838,1e-08,84110.0,84109.0,0.8862479]
[1744851100872,1e-08,84110.0,84109.0,0.5462479]
[1744851103683,1e-08,84110.0,84109.0,0.8862479]
[1744851104441,1e-08,84110.0,84109.0,0.5462479]
[1744851104879,1e-08,84110.0,84109.0,1.9985279]
[1744851109687,1e-08,84117.0,84115.0,0.34]
[1744851109900,1e-08,84120.0,84117.0,0.58965226]
[1744851110150,1e-08,84129.0,84128.0,0.57773297]
[1744851110481,0.0459,84143.0,84138.0,0.23770472]
[1744851110610,0.00205945,84139.0,84138.0,0.91431262]
[1744851112030,0.00205945,84139.0,84138.0,0.92592929]
[1744851112797,0.00205945,84139.0,84138.0,0.92692929]
[1744851114453,0.00205945,84139.0,84138.0,1.26692929]
[1744851114839,0.045,84154.0,84143.0,0.23769059]
[1744851115011,0.045,84154.0,84143.0,1.4692985]
[1744851115389,1e-08,84144.0,84143.0,1.4692985]
[1744851116165,1e-08,84144.0,84143.0,2.22809849]
[1744851117069,1e-08,84144.0,84143.0,2.23209849]
[1744851117271,1e-08,84144.0,84143.0,2.23509849]
[1744851123151,0.11159302,84183.0,84166.0,0.23762514]
[1744851123290,0.00013631,84169.0,84167.0,0.37594042]
[1744851124992,0.00013631,84169.0,84167.0,0.37594042]
[1744851125268,0.01273065,84168.0,84167.0,0.37594042]
[1744851125466,0.00013631,84169.0,84167.0,0.39800483]
[1744851125683,0.01273545,84168.0,84167.0,0.39800483]
[1744851125885,0.00013631,84169.0,84167.0,0.39800483]
[1744851126088,0.01275942,84168.0,84167.0,0.39800483]
[1744851126239,0.0958,84168.0,84167.0,0.39800483]
[1744851127050,0.0958,84168.0,84167.0,0.37594042]
[1744851127318,0.0998,84168.0,84167.0,0.37594042]
[1744851129898,0.0998,84168.0,84167.0,0.13832]
[1744851130104,0.0998,84168.0,84160.0,0.24952358]
[1744851130105,0.01188297,84154.0,84140.0,0.2358999]
[1744851130303,0.01188297,84154.0,84153.0,0.13832]
[1744851130304,0.29844249,84154.0,84153.0,0.13832]
[1744851130652,0.31143337,84154.0,84153.0,0.13832]
[1744851131395,0.23767647,84148.0,84147.0,0.002]
[1744851131577,0.33507647,84148.0,84147.0,0.002]
[1744851131783,0.0118841,84146.0,84143.0,1.11216]
[1744851131998,0.01290257,84145.0,84143.0,1.11216]
[1744851133392,0.28298777,84144.0,84143.0,1.11216]
[1744851133540,0.2958371,84144.0,84143.0,1.11216]
[1744851133762,0.0912,84143.0,84142.0,0.13832]
[1744851134123,0.10399657,84143.0,84142.0,0.25776791]
[1744851134340,0.01279657,84143.0,84142.0,0.25776791]
[1744851134706,0.004,84144.0,84143.0,0.23769059]
[1744851134921,0.004,84144.0,84142.0,0.13832]
[1744851135051,0.001,84143.0,84142.0,0.13832]
[1744851135255,0.05848523,84138.0,84136.0,0.13832]
[1744851135454,0.0477,84137.0,84136.0,0.13832]
[1744851135688,0.06047728,84137.0,84136.0,0.13832]
[1744851136673,0.06347728,84137.0,84136.0,0.13832]
[1744851137739,0.30118482,84137.0,84136.0,0.13832]
[1744851140629,0.01188636,84130.0,84129.0,0.13832]
[1744851140780,0.01188636,84130.0,84125.0,0.66842788]
[1744851140781,0.01188664,84128.0,84125.0,0.41885944]
[1744851141104,0.0118865,84129.0,84125.0,0.41885944]
[1744851141317,0.01272107,84127.0,84125.0,0.41885944]
[1744851141519,0.049,84130.0,84126.0,0.23773863]
[1744851141748,0.049,84130.0,84125.0,0.41885944]
[1744851141749,0.01271627,84126.0,84125.0,0.41885944]
[1744851141965,0.01188664,84128.0,84125.0,0.41985944]
[1744851142353,0.01272107,84127.0,84125.0,0.41985944]
[1744851143922,0.01272107,84127.0,84125.0,0.41885944]
[1744851144145,0.002,84127.0,84125.0,0.41885944]
[1744851144299,0.01271627,84126.0,84125.0,0.41885944]
[1744851145877,0.01188664,84128.0,84125.0,5.945e-05]
[1744851146070,0.01467766,84126.0,84125.0,5.945e-05]
[1744851146291,0.002,84126.0,84125.0,5.945e-05]
[1744851146652,0.0118865,84129.0,84125.0,0.01194652]
[1744851146853,0.01267766,84126.0,84125.0,0.01194652]
[1744851147079,0.01388664,84128.0,84125.0,5.945e-05]
[1744851147252,0.01267766,84126.0,84125.0,5.945e-05]
[1744851147632,0.01188664,84128.0,84125.0,5.945e-05]
[1744851147834,0.01467766,84126.0,84125.0,0.2378009]
[1744851147952,0.002,84126.0,84125.0,0.2378009]
[1744851148468,0.01467766,84126.0,84125.0,0.2378009]
[1744851148937,0.01267766,84126.0,84125.0,0.2378009]
[1744851149316,0.002,84128.0,84125.0,0.24968797]
[1744851149696,0.002,84128.0,84127.0,0.2377358]
[1744851150617,0.05958537,84137.0,84134.0,0.23771602]
[1744851150836,0.01188565,84135.0,84129.0,0.23772908]
[1744851151058,0.01188594,84133.0,84130.0,0.11944791]
[1744851151217,0.02458292,84134.0,84130.0,0.11944791]
[1744851152400,0.02458292,84134.0,84130.0,0.35717279]
[1744851153699,0.01369712,84134.0,84130.0,0.35717279]
[1744851154099,0.01669712,84134.0,84130.0,0.35717279]
[1744851154299,0.01669712,84134.0,84132.0,0.23772154]
[1744851155241,0.01569712,84134.0,84132.0,0.23772154]
[1744851155475,0.01369712,84134.0,84132.0,0.23772154]
[1744851155629,0.01669712,84134.0,84132.0,0.23772154]
[1744851156030,0.004,84134.0,84132.0,0.23772154]
[1744851156810,0.0126867,84133.0,84130.0,0.11944791]
[1744851157012,0.01188622,84131.0,84128.0,0.13836]
[1744851157244,0.01188622,84131.0,84128.0,0.49554086]
[1744851157448,0.01188608,84132.0,84128.0,0.49554086]
[1744851157854,0.02461142,84131.0,84128.0,0.49554086]
[1744851158678,0.02661142,84131.0,84128.0,0.49554086]
[1744851159503,0.02661142,84131.0,84128.0,0.13836]
[1744851159504,0.26433602,84131.0,84128.0,0.13836]
[1744851160510,0.0147252,84131.0,84128.0,0.13836]
[1744851160692,0.0147252,84131.0,84129.0,0.23773015]
[1744851160892,0.002,84131.0,84129.0,0.23773015]
[1744851162121,0.01188594,84133.0,84129.0,0.23773015]
[1744851162336,0.01271109,84130.0,84129.0,0.23773015]
[1744851162537,0.002,84131.0,84129.0,0.23773015]
[1744851162875,0.01188594,84133.0,84129.0,0.23773015]
[1744851163078,0.01271109,84130.0,84129.0,0.23773015]
[1744851163277,0.002,84133.0,84132.0,0.23772167]
[1744851163520,0.01271276,84130.0,84129.0,0.24961665]
[1744851163738,0.001,84131.0,84129.0,0.23773015]
[1744851163995,0.0127137,84130.0,84129.0,0.23773015]
[1744851164854,0.0127137,84130.0,84129.0,0.35717806]
[1744851165112,0.002,84131.0,84129.0,0.35717806]
[1744851165314,0.002,84131.0,84130.0,0.11944791]
[1744851165875,0.002,84131.0,84130.0,0.12775379]
[1744851166093,0.01188325,84152.0,84146.0,0.0118841]
[1744851166344,0.0964,84157.0,84146.0,0.0118841]
[1744851166345,0.01188227,84159.0,84152.0,0.24954767]
[1744851166568,0.01188255,84157.0,84152.0,0.23766442]
[1744851167218,0.01188297,84154.0,84153.0,0.02213312]
[1744851167914,0.01188269,84156.0,84152.0,0.237664]
[1744851168118,0.001,84157.0,84154.0,0.23765734]
[1744851168533,0.01188255,84157.0,84154.0,0.23765734]
[1744851168703,0.01188227,84159.0,84154.0,0.23765734]
[1744851168902,0.01188255,84157.0,84149.0,0.23767347]
[1744851169123,0.01188283,84155.0,84150.0,0.11944791]
[1744851169305,0.001,84154.0,84150.0,0.14155623]
[1744851169506,0.01288297,84154.0,84150.0,0.14155623]
[1744851170240,0.23766517,84152.0,84143.0,0.23768905]
[1744851170400,0.23766517,84152.0,84147.0,0.02210381]
[1744851170598,0.0118834,84151.0,84147.0,0.02210381]
[1744851171002,0.01267334,84150.0,84146.0,0.38792347]
[1744851171592,0.01267334,84150.0,84148.0,0.23767572]
[1744851172428,0.001,84150.0,84148.0,0.23767572]
[1744851172629,0.01158575,84149.0,84148.0,0.23767572]
[1744851172867,0.01158575,84149.0,84148.0,0.25977334]
[1744851173271,0.004,84150.0,84148.0,0.25977334]
[1744851173477,0.01159275,84149.0,84148.0,0.23767572]
[1744851173636,0.01188325,84152.0,84148.0,0.23767572]
[1744851173835,0.01158795,84151.0,84148.0,0.24955954]
[1744851174097,0.01188311,84153.0,84150.0,0.23767082]
[1744851174756,0.001,84152.0,84150.0,0.23767082]
[1744851175260,0.01188311,84153.0,84150.0,0.23767082]
[1744851175700,0.01288311,84153.0,84150.0,0.23767082]
[1744851176082,0.01288311,84153.0,84148.0,0.23767572]
[1744851176456,0.01288311,84153.0,84148.0,0.24955954]
[1744851176874,0.01588311,84153.0,84148.0,0.24955954]
[1744851177047,0.01588311,84153.0,84150.0,0.23767077]
[1744851177248,0.01188368,84149.0,84146.0,0.37603937]
[1744851177460,0.01188354,84150.0,84147.0,0.02209742]
[1744851178079,0.05728354,84150.0,84147.0,0.02209742]
[1744851178284,0.01188368,84149.0,84146.0,0.13836]
[1744851179064,0.24955733,84149.0,84146.0,0.13836]
[1744851179715,0.05728354,84150.0,84146.0,0.13836]
[1744851179886,0.01188354,84150.0,84146.0,0.13836]
[1744851180087,0.01188368,84149.0,84146.0,0.13836]
[1744851180466,0.01288368,84149.0,84146.0,0.13836]
[1744851180585,0.01588368,84149.0,84146.0,0.13836]
[1744851180937,0.01488368,84149.0,84146.0,0.13836]
[1744851181085,0.01488368,84149.0,84146.0,0.37604108]
[1744851181834,0.25355775,84149.0,84146.0,0.13836]
[1744851182033,0.004,84149.0,84146.0,0.37604179]
[1744851182194,0.004,84149.0,84146.0,0.38792589]
[1744851182820,0.004,84149.0,84146.0,0.37604179]
[1744851183942,0.004,84149.0,84147.0,0.02212927]
[1744851184165,0.24167628,84149.0,84147.0,0.02212927]
[1744851184367,0.24167628,84149.0,84141.0,0.13904]
[1744851184727,0.0118841,84146.0,84142.0,0.00829888]
[1744851185180,0.01188354,84150.0,84144.0,0.24957215]
[1744851185398,0.001,84149.0,84144.0,0.24957215]
[1744851185634,0.004,84149.0,84147.0,0.23767647]
[1744851186628,0.01157222,84148.0,84147.0,0.23767647]
[1744851187011,0.004,84149.0,84147.0,0.25980902]
[1744851187012,0.001,84149.0,84147.0,0.25980902]
[1744851187251,0.01188325,84152.0,84148.0,0.02213255]
[1744851187491,0.01188269,84156.0,84150.0,0.2376704]
[1744851187707,0.01188269,84156.0,84151.0,0.2495514]
[1744851188156,0.01188283,84155.0,84152.0,0.23766496]
[1744851188551,0.01188241,84158.0,84154.0,0.23765891]
[1744851188718,0.01188269,84156.0,84152.0,0.23766496]
[1744851188958,0.01188255,84157.0,84152.0,0.23766496]
[1744851189293,0.004,84156.0,84154.0,0.23765952]
[1744851190071,0.004,84156.0,84155.0,0.02213682]
[1744851190276,0.005,84156.0,84155.0,0.04150602]
[1744851190474,0.001,84156.0,84155.0,0.04150602]
[1744851190635,0.23762901,84165.0,84158.0,0.2376477]
[1744851190834,0.01188142,84165.0,84162.0,0.23763637]
[1744851191481,0.01188128,84166.0,84162.0,0.23763663]
[1744851191687,0.00013631,84167.0,84166.0,0.23762564]
[1744851192548,0.01201745,84167.0,84164.0,0.23763129]
[1744851192771,0.01201745,84167.0,84162.0,0.001]
[1744851192772,0.01188142,84165.0,84162.0,0.001]
[1744851192902,0.24951194,84165.0,84162.0,0.001]
[1744851193489,0.01288128,84166.0,84162.0,0.001]
[1744851193688,0.24950988,84165.0,84163.0,0.02214107]
[1744851194548,0.01188184,84162.0,84158.0,0.02214107]
[1744851194912,0.01188184,84162.0,84159.0,0.00830606]
[1744851195375,0.01588142,84165.0,84160.0,0.02214107]
[1744851195589,0.0118817,84163.0,84160.0,0.02214107]
[1744851196105,0.0118817,84163.0,84161.0,0.02214107]
[1744851196603,0.0118817,84163.0,84162.0,0.02214107]
[1744851197310,0.0128817,84163.0,84162.0,0.02214107]
[1744851197872,0.0118817,84163.0,84162.0,0.02214107]
[1744851198053,0.0138817,84163.0,84162.0,0.02214107]
[1744851198252,0.0128817,84163.0,84162.0,0.02214107]
[1744851198771,0.004,84163.0,84162.0,0.02214107]
[1744851200208,0.004,84163.0,84160.0,0.02214107]
[1744851200596,0.004,84163.0,84161.0,0.02214107]
[1744851200936,0.01211498,84162.0,84161.0,0.02214107]
[1744851201550,0.28503693,84162.0,84161.0,0.02214107]
[1744851201771,0.29715511,84162.0,84161.0,0.02214107]
[1744851201964,0.01188198,84161.0,84158.0,0.02214107]
[1744851202194,0.01212777,84160.0,84159.0,0.24952767]
[1744851202452,0.01212777,84160.0,84159.0,0.24595369]
[1744851202703,0.06128184,84162.0,84159.0,0.24595369]
[1744851202892,0.01212622,84160.0,84159.0,0.00830829]
[1744851203046,0.23764155,84161.0,84160.0,0.02215647]
[1744851203616,0.24952353,84161.0,84158.0,0.02215647]
[1744851203844,0.2376454,84159.0,84158.0,0.02215647]
[1744851204783,0.2376454,84159.0,84157.0,0.13904]
[1744851205367,0.2386454,84159.0,84157.0,0.13904]
[1744851205663,0.001,84159.0,84157.0,0.13904]
[1744851205833,0.01188212,84160.0,84157.0,0.13904]
[1744851206036,0.2406454,84159.0,84157.0,0.13904]
[1744851207542,0.2416454,84159.0,84157.0,0.13904]
[1744851207755,0.2386454,84159.0,84157.0,0.13904]
[1744851208580,0.2416454,84159.0,84157.0,0.13904]
[1744851210413,0.004,84159.0,84157.0,0.13904]
[1744851211341,0.2416456,84159.0,84157.0,0.13904]
[1744851211939,0.004,84159.0,84157.0,0.13904]
[1744851212153,0.004,84159.0,84158.0,0.23764823]
[1744851212502,0.004,84159.0,84158.0,0.26812608]
[1744851212911,0.01612252,84159.0,84158.0,0.26812608]
[1744851213111,0.01512252,84159.0,84158.0,0.26812608]
[1744851213324,0.01188156,84164.0,84158.0,0.26812608]
[1744851213526,0.01211772,84163.0,84160.0,0.23764071]
[1744851213731,0.01211772,84163.0,84161.0,0.01108017]
[1744851213941,0.01211772,84163.0,84162.0,0.02216711]
[1744851214091,0.01188142,84165.0,84162.0,0.02216711]
[1744851214299,0.01209854,84164.0,84163.0,0.02216711]
[1744851214711,0.01209854,84164.0,84163.0,0.03324728]
[1744851216082,0.01309854,84164.0,84163.0,0.27919273]
[1744851216377,0.00013631,84167.0,84166.0,0.23762564]
[1744851216729,0.00013631,84167.0,84166.0,0.25979275]
[1744851216957,0.00013631,84167.0,84166.0,0.27918426]
[1744851217908,0.00413631,84167.0,84166.0,0.27918426]
[1744851219180,0.00513631,84167.0,84166.0,0.27918426]
[1744851219627,0.00413631,84167.0,84166.0,0.27918426]
[1744851220166,0.00513631,84167.0,84166.0,0.27918426]
[1744851221651,0.01720907,84167.0,84166.0,0.27918426]
[1744851221868,0.00513631,84167.0,84166.0,0.27918426]
[1744851222075,0.01720907,84167.0,84166.0,0.27918426]
[1744851222267,0.00513631,84167.0,84166.0,0.27918426]
[1744851222445,0.01720907,84167.0,84166.0,0.27918426]
[1744851222635,0.00513631,84167.0,84166.0,0.27918426]
[1744851222834,0.00513631,84167.0,84166.0,0.26810409]
[1744851223035,0.01723738,84167.0,84166.0,0.26810409]
[1744851223277,0.00513631,84167.0,84166.0,0.26810409]
[1744851223454,0.01723738,84167.0,84166.0,0.26810409]
[1744851223652,0.00513631,84167.0,84166.0,0.26810409]
[1744851223856,0.01723738,84167.0,84166.0,0.03047845]
[1744851224064,0.00513631,84167.0,84166.0,0.03047845]
[1744851224269,0.01723738,84167.0,84166.0,0.03047845]
[1744851224531,0.00513631,84167.0,84166.0,0.03047845]
[1744851224696,0.25487837,84167.0,84166.0,0.00831134]
[1744851224844,0.24275913,84167.0,84166.0,0.00831134]
[1744851225210,0.25483523,84167.0,84166.0,0.00831134]
[1744851225617,0.01188128,84166.0,84161.0,0.24951905]
[1744851226000,0.01209528,84165.0,84161.0,0.24951905]
[1744851226765,0.01209528,84165.0,84163.0,0.23763332]
[1744851227392,0.01209528,84165.0,84164.0,0.02215006]
[1744851227511,0.01509528,84165.0,84164.0,0.02215006]
[1744851227712,0.01309528,84165.0,84163.0,0.23763332]
[1744851228134,0.01609528,84165.0,84163.0,0.23763332]
[1744851228747,0.01509528,84165.0,84164.0,0.02215019]
[1744851228948,0.004,84165.0,84164.0,0.03045635]
[1744851229682,0.003,84165.0,84164.0,0.03045635]
[1744851229906,0.00013631,84167.0,84165.0,0.23762846]
[1744851230118,0.001,84165.0,84164.0,0.03045635]
[1744851230291,0.24162846,84165.0,84164.0,0.03045635]
[1744851230492,0.24162846,84165.0,84160.0,0.13832]
[1744851230493,0.23763976,84161.0,84160.0,0.13832]
[1744851230816,0.24972671,84161.0,84160.0,0.16047517]
[1744851231862,0.25472671,84161.0,84160.0,0.16047517]
[1744851232816,0.25672671,84161.0,84160.0,0.16047517]
[1744851235039,0.25672671,84161.0,84160.0,0.02215517]
[1744851235470,0.01908695,84161.0,84160.0,0.02215517]
[1744851235597,0.01908695,84161.0,84160.0,0.25979775]
[1744851235797,0.007,84161.0,84160.0,0.25979775]
[1744851236350,0.007,84161.0,84160.0,0.26810497]
[1744851236556,0.005,84161.0,84160.0,0.26810497]
[1744851236754,0.00013631,84167.0,84163.0,0.24951326]
[1744851236908,0.01202113,84166.0,84163.0,0.24951326]
[1744851237122,0.01202113,84166.0,84164.0,0.02215517]
[1744851237506,0.01202113,84166.0,84165.0,0.02215517]
[1744851238084,0.01202113,84166.0,84165.0,0.03323136]
[1744851238229,0.01502113,84166.0,84165.0,0.03323136]
[1744851238714,0.01202113,84166.0,84165.0,0.03323136]
[1744851238920,0.01402113,84166.0,84165.0,0.03323136]
[1744851240085,0.25164677,84166.0,84165.0,0.03323136]
[1744851240532,0.25564677,84166.0,84165.0,0.03323136]
[1744851240761,0.25564677,84166.0,84165.0,0.02215517]
[1744851241143,0.01802113,84166.0,84165.0,0.02215517]
[1744851243103,0.006,84166.0,84165.0,0.02215517]
[1744851243308,0.01803791,84166.0,84165.0,0.0304623]
[1744851243508,0.006,84166.0,84165.0,0.04153968]
[1744851244765,0.01805948,84166.0,84165.0,0.04153968]
[1744851247448,0.01805948,84166.0,84165.0,0.0304623]
[1744851249607,0.01805948,84166.0,84165.0,0.04153981]
[1744851250693,0.01805948,84166.0,84165.0,0.27916827]
[1744851251305,0.006,84166.0,84165.0,0.27916827]
[1744851253928,0.004,84166.0,84165.0,0.27916827]
[1744851254132,0.00013631,84167.0,84165.0,0.27916827]
[1744851254542,0.001,84166.0,84165.0,0.2570131]
[1744851255262,0.00013631,84167.0,84165.0,0.27915449]
[1744851255610,0.00013631,84167.0,84166.0,0.02214139]
[1744851256210,0.01224668,84167.0,84166.0,0.03044852]
[1744851256413,0.01224668,84167.0,84166.0,0.04152603]
[1744851256608,0.01324668,84167.0,84166.0,0.04152603]
[1744851257025,0.01224668,84167.0,84166.0,0.04152603]
[1744851257269,0.01424668,84167.0,84166.0,0.04152603]
[1744851257473,0.01524668,84167.0,84166.0,0.04152603]
[1744851265733,0.2528695,84167.0,84166.0,0.04152603]
[1744851265919,0.01524668,84167.0,84166.0,0.04152603]
[1744851266944,0.01524668,84167.0,84166.0,0.03044852]
[1744851268734,0.01524668,84167.0,84166.0,0.04152473]
[1744851271752,0.2528695,84167.0,84166.0,0.04152473]
[1744851271964,0.01524668,84167.0,84166.0,0.04152473]
[1744851272909,0.2528695,84167.0,84166.0,0.04152473]
[1744851274332,0.3446695,84167.0,84166.0,0.01107621]
[1744851274487,0.23764258,84160.0,84159.0,0.13828]
[1744851274691,0.23764258,84160.0,84151.0,0.41879999]
[1744851274692,0.23766517,84152.0,84151.0,0.41879999]
[1744851275045,0.23766517,84152.0,84148.0,0.13828]
[1744851275046,0.0118834,84151.0,84148.0,0.13828]
[1744851275461,0.01196668,84150.0,84148.0,0.13828]
[1744851275669,0.0118834,84151.0,84148.0,0.13828]
[1744851275866,0.01196668,84149.0,84148.0,0.13828]
[1744851276090,0.0118834,84151.0,84148.0,0.13828]
[1744851276270,0.01197148,84149.0,84148.0,0.13828]
[1744851276472,0.0118834,84151.0,84148.0,0.13828]
[1744851276674,0.01198107,84149.0,84148.0,0.13828]
[1744851276896,0.01188269,84156.0,84151.0,0.23766671]
[1744851277295,0.02382946,84155.0,84151.0,0.23766671]
[1744851278018,0.01188297,84154.0,84151.0,0.23766671]